[Event "Asian Amateur Rapid 2024"]
[Site "Al Ain"]
[Date "2024.12.15"]
[Round "3.33"]
[White "Maleki, Alimohammad"]
[Black "Humaidan Mohamed, Alzaabi"]
[Result "1-0"]
[ECO "A48"]
[WhiteElo "1488"]
[BlackElo "1811"]
[Annotator "NA RC"]
[PlyCount "143"]
[EventDate "2024.12.15"]
[EventType "swiss"]
[EventCountry "UAE"]
[SourceTitle "playchess.com"]
[Source "ChessBase"]
[SourceQuality "1"]
[TimeControl "900+10"]

1. d4 {[%emt 0:00:03]} Nf6 {[%emt 0:00:22]} 2. Bf4 {[%emt 0:00:04]} g6 {[%emt 0:00:02]} 3. e3 {[%emt 0:00:11]} Bg7 {[%emt 0:00:01]} 4. Nf3 {[%emt 0:00:01]} d6 {[%emt 0:00:01]} 5. h3 {[%emt 0:00:01]} O-O {[%emt 0:00:01]} 6. Be2 {[%emt 0:00:07]} Nc6 {[%emt 0:00:02]} 7. O-O {[%emt 0:00:25]} Nd7 {[%emt 0:00:01]} 8. Bh2 {[%emt 0:01:00]} e5 {[%emt 0:00:02]} 9. c3 {[%emt 0:01:53]} f5 {[%emt 0:00:03]} 10. Bc4+ {[%emt 0:02:56]} Kh8 {[%emt 0:00:09]} 11. dxe5 {[%emt 0:01:10]} dxe5 {[%emt 0:00:45]} 12. Na3 {[%emt 0:00:40]} a6 {[%emt 0:01:20]} 13. Qd5 {[%emt 0:01:38]} Qe7 {[%emt 0:01:14]} 14. Rad1 {[%emt 0:01:16]} Nb6 {[%emt 0:00:58]} 15. Qd2 {[%emt 0:00:09]} Be6 {[%emt 0:01:29]} 16. Bb3 {[%emt 0:01:01]} Bxb3 {[%emt 0:01:31]} 17. axb3 {[%emt 0:00:01]} Rad8 {[%emt 0:00:02]} 18. Qc2 {[%emt 0:00:15]} e4 {[%emt 0:00:32]} 19. Nd4 {[%emt 0:00:16]} Ne5 {[%emt 0:00:08]} 20. Bxe5 {[%emt 0:00:53]} Bxe5 {[%emt 0:00:11]} 21. Rfe1 {[%emt 0:01:09]} Rd7 {[%emt 0:01:36]} 22. Nc4 {[%emt 0:00:07]} Nxc4 {[%emt 0:00:01]} 23. bxc4 {[%emt 0:00:01]} c5 {[%emt 0:01:28]} 24. Nb3 {[%emt 0:01:13]} Rfd8 {[%emt 0:00:40]} 25. Rxd7 {[%emt 0:00:08]} Rxd7 {[%emt 0:00:18]} 26. Rd1 {[%emt 0:00:17]} b6 {[%emt 0:01:11]} 27. Rd5 {[%emt 0:00:40]} Rxd5 {[%emt 0:00:13]} 28. cxd5 {[%emt 0:00:01]} c4 {[%emt 0:00:02]} 29. Nd4 {[%emt 0:00:39]} Bxd4 {[%emt 0:01:29]} 30. exd4 {[%emt 0:00:12]} Qd7 {[%emt 0:00:08]} 31. Qd2 {[%emt 0:00:33]} Qxd5 {[%emt 0:00:15]} 32. Qf4 {[%emt 0:00:18]} Qe6 {[%emt 0:01:29]} 33. Qb8+ {[%emt 0:00:11]} Kg7 {[%emt 0:00:01]} 34. Qb7+ {[%emt 0:00:09]} Kh6 {[%emt 0:00:11]} 35. Qxa6 {[%emt 0:00:01]} e3 {[%emt 0:00:06]} 36. Kf1 {[%emt 0:00:34]} e2+ {[%emt 0:00:13]} 37. Ke1 {[%emt 0:00:01]} f4 {[%emt 0:01:11]} 38. h4 {[%emt 0:00:22]} Kh5 {[%emt 0:00:28]} 39. Qb7 {[%emt 0:00:01]} Kxh4 {[%emt 0:00:22]} 40. Qxh7+ {[%emt 0:00:07]} Kg5 {[%emt 0:00:00]} 41. Qc7 {[%emt 0:00:46]} Qe4 {[%emt 0:01:01]} 42. Qxc4 {[%emt 0:00:28]} Qxg2 {[%emt 0:00:13]} 43. Qxe2 {[%emt 0:00:02]} Qh1+ {[%emt 0:00:06]} 44. Qf1 {[%emt 0:00:03]} Qe4+ {[%emt 0:00:03]} 45. Qe2 {[%emt 0:00:02]} Qb1+ {[%emt 0:00:03]} 46. Qd1 {[%emt 0:00:08]} Qxb2 {[%emt 0:00:01]} 47. Qd2 {[%emt 0:00:27]} Qa1+ {[%emt 0:00:06]} 48. Ke2 {[%emt 0:00:04]} Qh1 {[%emt 0:00:37]} 49. d5 {[%emt 0:00:16]} Qe4+ {[%emt 0:00:17]} 50. Kd1 {[%emt 0:00:13]} Qb1+ {[%emt 0:00:18]} 51. Ke2 {[%emt 0:00:06]} Qe4+ {[%emt 0:00:14]} 52. Kd1 {[%emt 0:00:01]} Qb1+ {[%emt 0:00:02]} 53. Ke2 {[%emt 0:00:01]} Qb5+ {[%emt 0:00:09]} 54. Ke1 {[%emt 0:00:26]} Qd7 {[%emt 0:00:19]} 55. d6 {[%emt 0:00:15]} Qe6+ {[%emt 0:00:08]} 56. Kd1 {[%emt 0:00:10]} Qb3+ {[%emt 0:00:05]} 57. Ke1 {[%emt 0:00:12]} Qe6+ {[%emt 0:00:16]} 58. Kd1 {[%emt 0:00:05]} Qb3+ {[%emt 0:00:20]} 59. Ke2 {[%emt 0:00:13]} Qb5+ {[%emt 0:00:04]} 60. Ke1 {[%emt 0:00:07]} Qe5+ {[%emt 0:00:14]} 61. Kd1 {[%emt 0:00:08]} Qe8 {[%emt 0:00:09]} 62. d7 {[%emt 0:00:09]} Qd8 {[%emt 0:00:01]} 63. Qd5+ {[%emt 0:00:10]} Kf6 {[%emt 0:00:05]} 64. Qd4+ {[%emt 0:00:19]} Kg5 {[%emt 0:00:26]} 65. Qe5+ {[%emt 0:00:08]} Kg4 {[%emt 0:00:02]} 66. Qe6+ {[%emt 0:00:15]} Kf3 {[%emt 0:00:15]} 67. Ke1 {[%emt 0:00:09]} Kg2 {[%emt 0:00:19]} 68. Qg4+ {[%emt 0:00:07]} Kh1 {[%emt 0:00:01]} 69. Qh3+ {[%emt 0:00:04]} Kg1 {[%emt 0:00:01]} 70. Qg4+ {[%emt 0:00:09]} Kh1 {[%emt 0:00:06]} 71. Kf1 {[%emt 0:00:14]} Qxd7 {[%emt 0:00:43]} 72. Qg2# {[%emt 0:00:10]} 1-0

[Event "Asian Amateur Rapid 2024"]
[Site "Al Ain"]
[Date "2024.12.15"]
[Round "3.34"]
[White "Al Riyami, Saeed"]
[Black "Rashed Abubaker, Alhemeiri"]
[Result "0-1"]
[ECO "A11"]
[WhiteElo "1426"]
[BlackElo "1861"]
[Annotator "NA RC"]
[PlyCount "106"]
[EventDate "2024.12.15"]
[EventType "swiss"]
[EventCountry "UAE"]
[SourceTitle "playchess.com"]
[Source "ChessBase"]
[SourceQuality "1"]
[TimeControl "900+10"]

1. c4 {[%emt 0:00:02]} c6 {[%emt 0:00:05]} 2. g3 {[%emt 0:00:03]} d5 {[%emt 0:00:01]} 3. d3 {[%emt 0:00:23]} Nf6 {[%emt 0:00:03]} 4. Bg2 {[%emt 0:00:03]} dxc4 {[%emt 0:00:07]} 5. dxc4 {[%emt 0:00:14]} Qxd1+ {[%emt 0:00:02]} 6. Kxd1 {[%emt 0:00:02]} Bf5 {[%emt 0:00:11]} 7. Nc3 {[%emt 0:00:09]} e6 {[%emt 0:00:02]} 8. e4 {[%emt 0:00:09]} Bg6 {[%emt 0:00:03]} 9. f4 {[%emt 0:00:16]} Bb4 {[%emt 0:00:06]} 10. e5 {[%emt 0:00:34]} Bxc3 {[%emt 0:00:02]} 11. bxc3 {[%emt 0:00:02]} Ne4 {[%emt 0:00:01]} 12. Bb2 {[%emt 0:00:24]} Nf2+ {[%emt 0:00:38]} 13. Ke2 {[%emt 0:14:59]} Nxh1 {[%emt 0:00:05]} 14. Bxh1 {[%emt 0:00:00]} Nd7 {[%emt 0:00:02]} 15. Nf3 {[%emt 0:00:00]} Nb6 {[%emt 0:00:16]} 16. Nd2 {[%emt 0:00:00]} O-O-O {[%emt 0:00:06]} 17. c5 {[%emt 0:00:00]} Na4 {[%emt 0:00:09]} 18. Ne4 {[%emt 0:00:00]} Bxe4 {[%emt 0:00:05]} 19. Bxe4 {[%emt 0:00:00]} Nxb2 {[%emt 0:00:03]} 20. Rb1 {[%emt 0:00:00]} Na4 {[%emt 0:00:01]} 21. Rb3 {[%emt 0:00:00]} Nxc5 {[%emt 0:00:02]} 22. Ra3 {[%emt 0:00:00]} Nxe4 {[%emt 0:00:03]} 23. Rxa7 {[%emt 0:00:00]} Kc7 {[%emt 0:00:01]} 24. c4 {[%emt 0:00:00]} Ra8 {[%emt 0:00:04]} 25. Rxa8 {[%emt 0:00:00]} Rxa8 {[%emt 0:00:02]} 26. Kd3 {[%emt 0:00:00]} Nf2+ {[%emt 0:00:02]} 27. Ke3 {[%emt 0:00:00]} Rxa2 {[%emt 0:00:02]} 28. h4 {[%emt 0:00:00]} Nd1+ {[%emt 0:00:05]} 29. Kf3 {[%emt 0:00:00]} Kb6 {[%emt 0:00:02]} 30. Ke4 {[%emt 0:00:00]} Kc5 {[%emt 0:00:01]} 31. g4 {[%emt 0:00:00]} Kxc4 {[%emt 0:00:03]} 32. f5 {[%emt 0:00:00]} exf5+ {[%emt 0:00:02]} 33. gxf5 {[%emt 0:00:00]} Re2+ {[%emt 0:00:02]} 34. Kf4 {[%emt 0:00:00]} Kd5 {[%emt 0:00:02]} 35. Kg5 {[%emt 0:00:00]} h6+ {[%emt 0:00:01]} 36. Kf4 {[%emt 0:00:00]} Rxe5 {[%emt 0:00:03]} 37. h5 {[%emt 0:00:00]} Re4+ {[%emt 0:00:03]} 38. Kf3 {[%emt 0:00:00]} Ke5 {[%emt 0:00:01]} 39. f6 {[%emt 0:00:00]} Rf4+ {[%emt 0:00:02]} 40. Ke2 {[%emt 0:00:00]} Nc3+ {[%emt 0:00:02]} 41. Kd3 {[%emt 0:00:00]} Rxf6 {[%emt 0:00:05]} 42. Kxc3 {[%emt 0:00:00]} Rf4 {[%emt 0:00:01]} 43. Kd3 {[%emt 0:00:00]} Re4 {[%emt 0:00:02]} 44. Kc3 {[%emt 0:00:00]} Kd5 {[%emt 0:00:02]} 45. Kd3 {[%emt 0:00:00]} b5 {[%emt 0:00:03]} 46. Kc3 {[%emt 0:00:00]} Rd4 {[%emt 0:00:01]} 47. Kc2 {[%emt 0:00:00]} Kc4 {[%emt 0:00:02]} 48. Kc1 {[%emt 0:00:00]} Rd3 {[%emt 0:00:02]} 49. Kc2 {[%emt 0:00:00]} b4 {[%emt 0:00:03]} 50. Kb2 {[%emt 0:00:00]} Rc3 {[%emt 0:00:02]} 51. Kb1 {[%emt 0:00:00]} Kb3 {[%emt 0:00:02]} 52. Ka1 {[%emt 0:00:00]} Rh3 {[%emt 0:00:02]} 53. Kb1 {[%emt 0:00:00]} Rh1# {[%emt 0:00:04]} 0-1

[Event "Asian Amateur Rapid 2024"]
[Site "Al Ain"]
[Date "2024.12.15"]
[Round "3.35"]
[White "Al Hinai, Qusay"]
[Black "Mohammed Hamad Alkhemeiri"]
[Result "1-0"]
[ECO "E32"]
[WhiteElo "1862"]
[BlackElo "1482"]
[Annotator "NA RC"]
[PlyCount "79"]
[EventDate "2024.12.15"]
[EventType "swiss"]
[EventCountry "UAE"]
[SourceTitle "playchess.com"]
[Source "ChessBase"]
[SourceQuality "1"]
[TimeControl "900+10"]

1. d4 {[%emt 0:00:02]} Nf6 {[%emt 0:00:03]} 2. c4 {[%emt 0:00:01]} e6 {[%emt 0:00:02]} 3. Nc3 {[%emt 0:00:00]} Bb4 {[%emt 0:00:03]} 4. Qc2 {[%emt 0:00:01]} b6 {[%emt 0:00:09]} 5. f3 {[%emt 0:00:02]} Bb7 {[%emt 0:00:18]} 6. e4 {[%emt 0:00:03]} d6 {[%emt 0:00:24]} 7. Bd3 {[%emt 0:00:11]} Nbd7 {[%emt 0:00:03]} 8. Nge2 {[%emt 0:00:07]} c5 {[%emt 0:00:27]} 9. d5 {[%emt 0:00:07]} Ne5 {[%emt 0:01:42]} 10. a3 {[%emt 0:00:36]} Bxc3+ {[%emt 0:00:50]} 11. Qxc3 {[%emt 0:00:08]} O-O {[%emt 0:00:39]} 12. Bf4 {[%emt 0:00:22]} Nxd3+ {[%emt 0:01:08]} 13. Qxd3 {[%emt 0:00:02]} exd5 {[%emt 0:00:49]} 14. cxd5 {[%emt 0:00:10]} Nh5 {[%emt 0:00:10]} 15. Be3 {[%emt 0:00:31]} f5 {[%emt 0:04:13]} 16. O-O {[%emt 0:00:16]} f4 {[%emt 0:01:26]} 17. Bd2 {[%emt 0:00:02]} Qg5 {[%emt 0:00:35]} 18. Bc3 {[%emt 0:00:48]} Bc8 {[%emt 0:00:21]} 19. Kh1 {[%emt 0:00:01]} Qh4 {[%emt 0:00:54]} 20. Be1 {[%emt 0:01:29]} Qg5 {[%emt 0:00:38]} 21. b4 {[%emt 0:02:31]} a5 {[%emt 0:00:35]} 22. Bc3 {[%emt 0:00:53]} Ba6 {[%emt 0:00:37]} 23. b5 {[%emt 0:00:42]} Bc8 {[%emt 0:00:28]} 24. a4 {[%emt 0:00:04]} Qh6 {[%emt 0:00:32]} 25. Ra2 {[%emt 0:00:31]} Ng3+ {[%emt 0:00:29]} 26. Nxg3 {[%emt 0:00:01]} fxg3 {[%emt 0:00:02]} 27. h3 {[%emt 0:00:01]} Bxh3 {[%emt 0:00:09]} 28. gxh3 {[%emt 0:00:01]} Qxh3+ {[%emt 0:00:03]} 29. Kg1 {[%emt 0:00:01]} Rf4 {[%emt 0:00:08]} 30. Qe2 {[%emt 0:00:11]} h5 {[%emt 0:01:48]} 31. Qg2 {[%emt 0:00:13]} Qh4 {[%emt 0:00:04]} 32. Be1 {[%emt 0:00:13]} Qf6 {[%emt 0:00:23]} 33. Bxg3 {[%emt 0:00:19]} Qd4+ {[%emt 0:00:10]} 34. Kh2 {[%emt 0:00:15]} Rf6 {[%emt 0:00:04]} 35. Qd2 {[%emt 0:00:05]} Qc4 {[%emt 0:00:04]} 36. Qe2 {[%emt 0:00:17]} Qb3 {[%emt 0:00:09]} 37. Qc2 {[%emt 0:01:12]} Qe3 {[%emt 0:00:16]} 38. Qc1 {[%emt 0:01:04]} Qb3 {[%emt 0:00:06]} 39. Ra3 {[%emt 0:00:07]} Qb4 {[%emt 0:00:05]} 40. Be1 {[%emt 0:00:11]} 1-0

[Event "Asian Amateur Rapid 2024"]
[Site "Al Ain"]
[Date "2024.12.15"]
[Round "3.38"]
[White "taleb al, ameri"]
[Black "Sharfa, Farukh"]
[Result "1/2-1/2"]
[ECO "A00"]
[WhiteElo "1623"]
[BlackElo "1536"]
[Annotator "NA RC"]
[PlyCount "118"]
[EventDate "2024.12.15"]
[EventType "swiss"]
[EventCountry "UAE"]
[SourceTitle "playchess.com"]
[Source "ChessBase"]
[SourceQuality "1"]
[TimeControl "900+10"]

1. e4 {[%emt 0:00:39]} d5 {[%emt 0:00:01]} 2. Nc3 {[%emt 0:00:06]} dxe4 {[%emt 0:00:07]} 3. Nxe4 {[%emt 0:00:02]} e5 {[%emt 0:00:12]} 4. Nf3 {[%emt 0:00:08]} Nc6 {[%emt 0:00:06]} 5. c3 {[%emt 0:00:25]} Bd6 {[%emt 0:00:33]} 6. Bc4 {[%emt 0:00:11]} h6 {[%emt 0:00:10]} 7. O-O {[%emt 0:00:06]} Nf6 {[%emt 0:00:02]} 8. Ng3 {[%emt 0:00:40]} Bg4 {[%emt 0:00:07]} 9. h3 {[%emt 0:00:12]} Bd7 {[%emt 0:00:31]} 10. Re1 {[%emt 0:00:07]} O-O {[%emt 0:00:10]} 11. d3 {[%emt 0:00:03]} Re8 {[%emt 0:00:24]} 12. Nh4 {[%emt 0:00:12]} Na5 {[%emt 0:00:15]} 13. Bb3 {[%emt 0:00:25]} Nxb3 {[%emt 0:00:06]} 14. axb3 {[%emt 0:00:03]} Qc8 {[%emt 0:01:11]} 15. b4 {[%emt 0:00:57]} b6 {[%emt 0:00:33]} 16. Ne4 {[%emt 0:00:47]} Nxe4 {[%emt 0:00:23]} 17. dxe4 {[%emt 0:00:18]} Qd8 {[%emt 0:01:05]} 18. Qh5 {[%emt 0:00:12]} Re6 {[%emt 0:01:27]} 19. Nf5 {[%emt 0:00:27]} Rg6 {[%emt 0:00:17]} 20. Nh4 {[%emt 0:02:11]} Rf6 {[%emt 0:00:10]} 21. Re3 {[%emt 0:00:26]} Kh7 {[%emt 0:00:26]} 22. Rg3 {[%emt 0:00:11]} Qf8 {[%emt 0:00:54]} 23. Bg5 {[%emt 0:00:18]} Re6 {[%emt 0:00:19]} 24. Nf5 {[%emt 0:00:24]} Rg6 {[%emt 0:00:02]} 25. Bh4 {[%emt 0:00:38]} Rxg3 {[%emt 0:00:10]} 26. Nxg3 {[%emt 0:00:22]} g6 {[%emt 0:00:49]} 27. Qf3 {[%emt 0:00:19]} g5 {[%emt 0:00:11]} 28. Nh5 {[%emt 0:00:04]} Be7 {[%emt 0:00:17]} 29. Bg3 {[%emt 0:00:20]} f6 {[%emt 0:00:26]} 30. Rd1 {[%emt 0:00:20]} Be6 {[%emt 0:00:09]} 31. Bh2 {[%emt 0:01:25]} Kg6 {[%emt 0:00:13]} 32. Ng3 {[%emt 0:00:02]} Kh7 {[%emt 0:01:43]} 33. Nf5 {[%emt 0:00:08]} Qf7 {[%emt 0:00:22]} 34. h4 {[%emt 0:00:17]} Rd8 {[%emt 0:00:44]} 35. hxg5 {[%emt 0:01:25]} Rxd1+ {[%emt 0:00:06]} 36. Qxd1 {[%emt 0:00:02]} hxg5 {[%emt 0:00:43]} 37. Qg4 {[%emt 0:01:06]} Bxf5 {[%emt 0:00:35]} 38. Qxf5+ {[%emt 0:00:21]} Kg7 {[%emt 0:00:01]} 39. Bg3 {[%emt 0:01:01]} Bd6 {[%emt 0:00:20]} 40. f3 {[%emt 0:00:46]} a5 {[%emt 0:00:23]} 41. bxa5 {[%emt 0:00:06]} bxa5 {[%emt 0:00:01]} 42. Qc8 {[%emt 0:00:14]} a4 {[%emt 0:00:08]} 43. Bf2 {[%emt 0:00:22]} a3 {[%emt 0:00:26]} 44. bxa3 {[%emt 0:00:09]} Bxa3 {[%emt 0:00:02]} 45. Qa6 {[%emt 0:00:15]} Qe7 {[%emt 0:00:41]} 46. Qb5 {[%emt 0:00:45]} Qd8 {[%emt 0:01:04]} 47. Qd5 {[%emt 0:00:33]} Qxd5 {[%emt 0:00:52]} 48. exd5 {[%emt 0:00:02]} Kf7 {[%emt 0:00:01]} 49. c4 {[%emt 0:00:11]} f5 {[%emt 0:00:46]} 50. g3 {[%emt 0:00:19]} Ke7 {[%emt 0:00:26]} 51. c5 {[%emt 0:00:11]} Kf6 {[%emt 0:00:11]} 52. Kf1 {[%emt 0:00:14]} e4 {[%emt 0:00:27]} 53. Bd4+ {[%emt 0:00:04]} Ke7 {[%emt 0:00:04]} 54. fxe4 {[%emt 0:00:05]} fxe4 {[%emt 0:00:01]} 55. Ke2 {[%emt 0:00:02]} Bc1 {[%emt 0:00:12]} 56. g4 {[%emt 0:00:19]} Bf4 {[%emt 0:00:04]} 57. Be3 {[%emt 0:00:40]} Kf6 {[%emt 0:00:17]} 58. Bd4+ {[%emt 0:00:10]} Ke7 {[%emt 0:00:01]} 59. Be3 {[%emt 0:00:01]} Kf6 {[%emt 0:00:02]} 1/2-1/2

[Event "Asian Amateur Rapid 2024"]
[Site "Al Ain"]
[Date "2024.12.15"]
[Round "3.39"]
[White "Amrit Adhikari"]
[Black "Sultan Ahmed AlMheiri"]
[Result "1-0"]
[ECO "C45"]
[WhiteElo "1602"]
[BlackElo "1569"]
[Annotator "NA RC"]
[PlyCount "77"]
[EventDate "2024.12.15"]
[EventType "swiss"]
[EventCountry "UAE"]
[SourceTitle "playchess.com"]
[Source "ChessBase"]
[SourceQuality "1"]
[TimeControl "900+10"]

1. e4 {[%emt 0:00:03]} e5 {[%emt 0:00:00]} 2. Nf3 {[%emt 0:00:01]} Nc6 {[%emt 0:00:01]} 3. d4 {[%emt 0:00:01]} exd4 {[%emt 0:00:01]} 4. Nxd4 {[%emt 0:00:02]} Nf6 {[%emt 0:00:01]} 5. Nxc6 {[%emt 0:00:04]} bxc6 {[%emt 0:00:01]} 6. e5 {[%emt 0:00:02]} Nd5 {[%emt 0:00:02]} 7. Bd3 {[%emt 0:00:06]} Bc5 {[%emt 0:00:11]} 8. O-O {[%emt 0:00:03]} O-O {[%emt 0:00:02]} 9. Nc3 {[%emt 0:00:09]} Nxc3 {[%emt 0:00:06]} 10. bxc3 {[%emt 0:00:01]} Re8 {[%emt 0:00:14]} 11. e6 {[%emt 0:00:37]} Qe7 {[%emt 0:02:55]} 12. exf7+ {[%emt 0:00:13]} Qxf7 {[%emt 0:00:18]} 13. Bb2 {[%emt 0:00:15]} d5 {[%emt 0:00:20]} 14. Qd2 {[%emt 0:00:56]} Bd7 {[%emt 0:00:50]} 15. Qg5 {[%emt 0:01:23]} Be7 {[%emt 0:01:41]} 16. Qg3 {[%emt 0:00:44]} Bd6 {[%emt 0:00:53]} 17. Qh4 {[%emt 0:00:02]} h6 {[%emt 0:00:19]} 18. c4 {[%emt 0:00:05]} Rab8 {[%emt 0:00:25]} 19. Rab1 {[%emt 0:00:10]} Bf5 {[%emt 0:01:06]} 20. cxd5 {[%emt 0:00:44]} cxd5 {[%emt 0:01:06]} 21. Bxf5 {[%emt 0:01:51]} Qxf5 {[%emt 0:00:09]} 22. Qa4 {[%emt 0:00:15]} Bc5 {[%emt 0:01:25]} 23. Bd4 {[%emt 0:00:52]} Bxd4 {[%emt 0:04:01]} 24. Qxd4 {[%emt 0:00:03]} Qxc2 {[%emt 0:00:47]} 25. Qxd5+ {[%emt 0:00:03]} Kh8 {[%emt 0:00:30]} 26. Rxb8 {[%emt 0:00:30]} Rxb8 {[%emt 0:00:01]} 27. g3 {[%emt 0:00:15]} c6 {[%emt 0:00:33]} 28. Qd6 {[%emt 0:00:20]} Rb2 {[%emt 0:00:08]} 29. a3 {[%emt 0:00:03]} Rb3 {[%emt 0:00:26]} 30. Re1 {[%emt 0:00:59]} Qc3 {[%emt 0:00:53]} 31. Qf8+ {[%emt 0:00:06]} Kh7 {[%emt 0:00:06]} 32. Qf5+ {[%emt 0:00:03]} g6 {[%emt 0:00:22]} 33. Re7+ {[%emt 0:00:02]} Qg7 {[%emt 0:00:35]} 34. Rxg7+ {[%emt 0:00:04]} Kxg7 {[%emt 0:00:02]} 35. Qe5+ {[%emt 0:00:02]} Kh7 {[%emt 0:00:08]} 36. Qe7+ {[%emt 0:00:09]} Kh8 {[%emt 0:00:01]} 37. Qf6+ {[%emt 0:00:03]} Kh7 {[%emt 0:00:06]} 38. Qf7+ {[%emt 0:00:01]} Kh8 {[%emt 0:00:00]} 39. Qxb3 {[%emt 0:00:12]} 1-0

[Event "Asian Amateur Rapid 2024"]
[Site "Al Ain"]
[Date "2024.12.15"]
[Round "3.40"]
[White "Muhammad Saleem, Hamad"]
[Black "KHALID ALHAWAY"]
[Result "0-1"]
[ECO "C55"]
[WhiteElo "1577"]
[BlackElo "1529"]
[Annotator "NA RC"]
[PlyCount "102"]
[EventDate "2024.12.15"]
[EventType "swiss"]
[EventCountry "UAE"]
[SourceTitle "playchess.com"]
[Source "ChessBase"]
[SourceQuality "1"]
[TimeControl "900+10"]

1. e4 {[%emt 0:01:54]} e5 {[%emt 0:00:02]} 2. Nf3 {[%emt 0:00:01]} Nc6 {[%emt 0:00:00]} 3. Bc4 {[%emt 0:00:01]} Nf6 {[%emt 0:00:03]} 4. Nc3 {[%emt 0:00:03]} Nxe4 {[%emt 0:00:04]} 5. Nxe4 {[%emt 0:14:01]} d5 {[%emt 0:15:51]} 6. Bxd5 {[%emt 0:00:00]} Qxd5 {[%emt 0:00:00]} 7. Nc3 {[%emt 0:00:00]} Qa5 {[%emt 0:00:00]} 8. d3 {[%emt 0:00:00]} Bb4 {[%emt 0:00:00]} 9. Bd2 {[%emt 0:00:00]} Nd4 {[%emt 0:00:00]} 10. Nxd4 {[%emt 0:00:00]} exd4 {[%emt 0:00:00]} 11. Ne4 {[%emt 0:00:00]} O-O {[%emt 0:01:00]} 12. c3 {[%emt 0:00:00]} dxc3 {[%emt 0:00:00]} 13. bxc3 {[%emt 0:00:00]} Ba3 {[%emt 0:00:00]} 14. O-O {[%emt 0:00:00]} Qd5 {[%emt 0:00:00]} 15. c4 {[%emt 0:00:00]} Qxd3 {[%emt 0:00:00]} 16. Re1 {[%emt 0:00:00]} Qxc4 {[%emt 0:00:00]} 17. Qb3 {[%emt 0:00:00]} Qxb3 {[%emt 0:00:00]} 18. axb3 {[%emt 0:00:00]} Bb2 {[%emt 0:00:00]} 19. Ra2 {[%emt 0:00:00]} Bf6 {[%emt 0:00:00]} 20. Nxf6+ {[%emt 0:00:00]} gxf6 {[%emt 0:00:00]} 21. Bh6 {[%emt 0:00:00]} Rd8 {[%emt 0:00:00]} 22. Rae2 {[%emt 0:00:00]} Be6 {[%emt 0:00:00]} 23. Re3 {[%emt 0:00:00]} Rd5 {[%emt 0:00:00]} 24. Rg3+ {[%emt 0:00:00]} Rg5 {[%emt 0:00:00]} 25. Bxg5 {[%emt 0:00:00]} fxg5 {[%emt 0:00:00]} 26. Rxg5+ {[%emt 0:00:00]} Kf8 {[%emt 0:00:00]} 27. Rg3 {[%emt 0:00:00]} a5 {[%emt 0:00:00]} 28. Rc1 {[%emt 0:00:00]} a4 {[%emt 0:00:00]} 29. bxa4 {[%emt 0:00:00]} Rxa4 {[%emt 0:00:00]} 30. h3 {[%emt 0:00:00]} c6 {[%emt 0:00:00]} 31. Rb1 {[%emt 0:00:00]} b5 {[%emt 0:00:00]} 32. Kf1 {[%emt 0:00:00]} Ra2 {[%emt 0:00:00]} 33. Rc3 {[%emt 0:00:00]} Bd5 {[%emt 0:00:00]} 34. Re3 {[%emt 0:00:00]} f6 {[%emt 0:00:00]} 35. Kg1 {[%emt 0:00:00]} Kf7 {[%emt 0:00:00]} 36. f3 {[%emt 0:00:00]} Bc4 {[%emt 0:00:00]} 37. Kh2 {[%emt 0:00:00]} c5 {[%emt 0:04:20]} 38. Rc3 {[%emt 0:00:00]} Ke6 {[%emt 0:00:00]} 39. Kg3 {[%emt 0:00:00]} Kd5 {[%emt 0:00:00]} 40. Kf4 {[%emt 0:00:00]} Kd4 {[%emt 0:00:00]} 41. Rcc1 {[%emt 0:00:00]} Rxg2 {[%emt 0:00:00]} 42. Rd1+ {[%emt 0:00:00]} Kc3 {[%emt 0:00:00]} 43. Rbc1+ {[%emt 0:00:00]} Rc2 {[%emt 0:00:00]} 44. Ke3 {[%emt 0:00:00]} Rxc1 {[%emt 0:00:00]} 45. Rxc1+ {[%emt 0:00:00]} Kb2 {[%emt 0:00:00]} 46. Rd1 {[%emt 0:00:00]} b4 {[%emt 0:00:00]} 47. Rd2+ {[%emt 0:00:00]} Kc1 {[%emt 0:00:00]} 48. Rg2 {[%emt 0:00:00]} b3 {[%emt 0:00:00]} 49. f4 {[%emt 0:07:20]} b2 {[%emt 0:00:00]} 50. Rxb2 {[%emt 0:00:00]} Kxb2 {[%emt 0:00:00]} 51. Kd2 {[%emt 0:00:00]} Bb3 {[%emt 0:00:00]} 0-1

[Event "Asian Amateur Rapid 2024"]
[Site "Al Ain"]
[Date "2024.12.15"]
[Round "3.41"]
[White "Amirgali, Zhanali"]
[Black "Abdulla Ateeq Alremaeithi"]
[Result "0-1"]
[ECO "B30"]
[WhiteElo "1497"]
[BlackElo "1639"]
[Annotator "NA RC"]
[PlyCount "90"]
[EventDate "2024.12.15"]
[EventType "swiss"]
[EventCountry "UAE"]
[SourceTitle "playchess.com"]
[Source "ChessBase"]
[SourceQuality "1"]
[TimeControl "900+10"]

1. e4 {[%emt 0:00:01]} c5 {[%emt 0:00:01]} 2. c4 {[%emt 0:00:03]} Nc6 {[%emt 0:00:03]} 3. Nf3 {[%emt 0:00:03]} d6 {[%emt 0:00:05]} 4. Nc3 {[%emt 0:00:03]} Bg4 {[%emt 0:00:03]} 5. h3 {[%emt 0:00:01]} Bxf3 {[%emt 0:00:03]} 6. Qxf3 {[%emt 0:00:02]} Nd4 {[%emt 0:00:01]} 7. Qd1 {[%emt 0:00:05]} e6 {[%emt 0:00:03]} 8. d3 {[%emt 0:00:04]} Nf6 {[%emt 0:00:02]} 9. Be3 {[%emt 0:00:02]} Nc6 {[%emt 0:00:03]} 10. Be2 {[%emt 0:00:04]} Be7 {[%emt 0:00:01]} 11. O-O {[%emt 0:00:06]} d5 {[%emt 0:00:07]} 12. cxd5 {[%emt 0:00:06]} exd5 {[%emt 0:00:02]} 13. exd5 {[%emt 0:00:02]} Nxd5 {[%emt 0:00:02]} 14. Qb3 {[%emt 0:00:13]} Nxe3 {[%emt 0:00:31]} 15. fxe3 {[%emt 0:00:03]} O-O {[%emt 0:00:03]} 16. Qxb7 {[%emt 0:00:06]} Ne5 {[%emt 0:00:12]} 17. Qe4 {[%emt 0:00:20]} Bf6 {[%emt 0:00:05]} 18. d4 {[%emt 0:00:08]} cxd4 {[%emt 0:00:09]} 19. exd4 {[%emt 0:00:02]} Ng6 {[%emt 0:00:02]} 20. Qg4 {[%emt 0:00:24]} Qxd4+ {[%emt 0:00:10]} 21. Qxd4 {[%emt 0:00:03]} Bxd4+ {[%emt 0:00:02]} 22. Kh1 {[%emt 0:00:06]} Rab8 {[%emt 0:00:03]} 23. Rab1 {[%emt 0:00:14]} Rfe8 {[%emt 0:00:06]} 24. Bc4 {[%emt 0:00:07]} Ne5 {[%emt 0:00:05]} 25. b3 {[%emt 0:00:22]} Bxc3 {[%emt 0:00:04]} 26. Rbc1 {[%emt 0:00:05]} Bd4 {[%emt 0:00:05]} 27. Rcd1 {[%emt 0:00:09]} Nxc4 {[%emt 0:00:05]} 28. Rxd4 {[%emt 0:00:06]} Ne5 {[%emt 0:00:05]} 29. Ra4 {[%emt 0:00:07]} Rb7 {[%emt 0:00:08]} 30. Re1 {[%emt 0:00:09]} f6 {[%emt 0:00:01]} 31. Kg1 {[%emt 0:00:10]} Rd8 {[%emt 0:00:05]} 32. Kf2 {[%emt 0:00:02]} Nd3+ {[%emt 0:17:53]} 33. Ke2 {[%emt 0:00:05]} Nxe1 {[%emt 0:00:00]} 34. Kxe1 {[%emt 0:00:02]} Re7+ {[%emt 0:00:00]} 35. Kf2 {[%emt 0:00:03]} Rd2+ {[%emt 0:00:00]} 36. Kf3 {[%emt 0:17:22]} Kf7 {[%emt 0:00:00]} 37. Rh4 {[%emt 0:00:00]} Rxa2 {[%emt 0:00:00]} 38. Rxh7 {[%emt 0:00:00]} Kg6 {[%emt 0:00:00]} 39. Rh4 {[%emt 0:00:00]} Rb7 {[%emt 0:00:00]} 40. b4 {[%emt 0:00:00]} Ra3+ {[%emt 0:00:00]} 41. Kf2 {[%emt 0:00:00]} a5 {[%emt 0:00:00]} 42. bxa5 {[%emt 0:00:00]} Rxa5 {[%emt 0:00:00]} 43. Kf3 {[%emt 0:00:00]} Rb3+ {[%emt 0:00:00]} 44. Kf2 {[%emt 0:00:00]} f5 {[%emt 0:00:00]} 45. g4 {[%emt 0:00:00]} Ra2+ {[%emt 0:00:00]} 0-1